[Event "Romanian-ch Open 2022"]
[Site "Eforie Nord"]
[Date "2022.02.26"]
[Round "8.25"]
[White "Ignat, Matei-Marius"]
[Black "Butolo, Alexandru-Mircea"]
[Result "1/2-1/2"]
[ECO "E11"]
[WhiteElo "2053"]
[BlackElo "1850"]
[Annotator "ChessBase"]
[PlyCount "71"]
[EventDate "2022.02.20"]
[EventType "swiss"]
[EventCountry "ROU"]
[SourceTitle "playchess.com"]
[Source "ChessBase"]
[SourceQuality "1"]
[TimeControl "40/5400+30:900+30"]

1. d4 {[%emt 0:00:03]} Nf6 {[%emt 0:00:27]} 2. c4 {[%emt 0:00:04]} e6 {[%emt 0:00:02]} 3. Nf3 {[%emt 0:00:04]} Bb4+ {[%emt 0:00:04]} 4. Bd2 {[%emt 0:01:15]} Qe7 {[%emt 0:01:14]} 5. Qc2 {[%emt 0:01:36]} O-O {[%emt 0:02:30]} 6. Nc3 {[%emt 0:04:14]} d5 {[%emt 0:10:28]} 7. e3 {[%emt 0:03:20]} b6 {[%emt 0:07:51]} 8. a3 {[%emt 0:07:53]} Bxc3 {[%emt 0:00:10]} 9. Bxc3 {[%emt 0:00:05]} Nbd7 {[%emt 0:01:16]} 10. Rc1 {[%emt 0:04:14]} Ba6 {[%emt 0:01:40]} 11. Qa4 {[%emt 0:04:23]} Bxc4 {[%emt 0:01:04]} 12. Bxc4 {[%emt 0:00:04]} dxc4 {[%emt 0:00:02]} 13. Qxc4 {[%emt 0:02:33]} c5 {[%emt 0:01:14]} 14. O-O {[%emt 0:00:16]} Ne4 {[%emt 0:03:15]} 15. dxc5 {[%emt 0:04:58]} Nxc3 {[%emt 0:00:08]} 16. Qxc3 {[%emt 0:13:25]} Nxc5 {[%emt 0:00:46]} 17. b4 {[%emt 0:00:13]} Nb7 {[%emt 0:04:46]} 18. Qc7 {[%emt 0:13:21]} Qxc7 {[%emt 0:00:05]} 19. Rxc7 {[%emt 0:00:03]} Nd6 {[%emt 0:00:05]} 20. Rd1 {[%emt 0:00:22]} Nb5 {[%emt 0:00:58]} 21. Rb7 {[%emt 0:00:22]} Nxa3 {[%emt 0:05:31]} 22. Rdd7 {[%emt 0:08:01]} Nc4 {[%emt 0:00:42]} 23. Rxa7 {[%emt 0:04:24]} Rxa7 {[%emt 0:00:41]} 24. Rxa7 {[%emt 0:00:10]} Rd8 {[%emt 0:02:39]} 25. Kf1 {[%emt 0:04:08]} h6 {[%emt 0:00:21]} 26. Rc7 {[%emt 0:01:16]} b5 {[%emt 0:09:04]} 27. Rb7 {[%emt 0:03:06]} Nd6 {[%emt 0:00:05]} 28. Rb6 {[%emt 0:00:03]} Ne4 {[%emt 0:00:45]} 29. Rxb5 {[%emt 0:04:43]} Rd1+ {[%emt 0:01:21]} 30. Ne1 {[%emt 0:00:06]} Rb1 {[%emt 0:01:47]} 31. f3 {[%emt 0:06:13]} Nc3 {[%emt 0:00:57]} 32. Rb8+ {[%emt 0:00:04]} Kh7 {[%emt 0:00:03]} 33. e4 {[%emt 0:00:49]} f5 {[%emt 0:02:32]} 34. Rc8 {[%emt 0:04:32]} Na2 {[%emt 0:01:23]} 35. exf5 {[%emt 0:00:14]} exf5 {[%emt 0:00:03]} 36. Rb8 {[%emt 0:07:53]} 1/2-1/2

[Event "Romanian-ch Open 2022"]
[Site "Eforie Nord"]
[Date "2022.02.26"]
[Round "8.26"]
[White "Mintau, Andrei-Catalin"]
[Black "Craciun, Sasha-Matei"]
[Result "1-0"]
[ECO "C45"]
[WhiteElo "2029"]
[BlackElo "1871"]
[Annotator "NA"]
[PlyCount "57"]
[EventDate "2022.02.20"]
[EventType "swiss"]
[EventCountry "ROU"]
[SourceTitle "playchess.com"]
[Source "ChessBase"]
[SourceQuality "1"]
[TimeControl "40/5400+30:900+30"]

1. e4 {[%emt 0:00:02]} e5 {[%emt 0:00:08]} 2. Nf3 {[%emt 0:00:04]} Nc6 {[%emt 0:00:07]} 3. d4 {[%emt 0:00:03]} exd4 {[%emt 0:00:06]} 4. Nxd4 {[%emt 0:00:04]} Bc5 {[%emt 0:00:20]} 5. Be3 {[%emt 0:00:15]} Qf6 {[%emt 0:00:19]} 6. c3 {[%emt 0:00:06]} Nge7 {[%emt 0:00:15]} 7. Bc4 {[%emt 0:00:12]} Ne5 {[%emt 0:03:09]} 8. Be2 {[%emt 0:00:15]} Qg6 {[%emt 0:01:23]} 9. O-O {[%emt 0:00:08]} d6 {[%emt 0:05:32]} 10. f3 {[%emt 0:00:10]} O-O {[%emt 0:01:32]} 11. Nd2 {[%emt 0:00:33]} d5 {[%emt 0:01:29]} 12. Qc2 {[%emt 0:10:55]} dxe4 {[%emt 0:06:29]} 13. Nxe4 {[%emt 0:02:47]} Bb6 {[%emt 0:03:42]} 14. a4 {[%emt 0:04:10]} Bh3 {[%emt 0:15:51]} 15. Rf2 {[%emt 0:02:49]} Nf5 {[%emt 0:00:23]} 16. Nxf5 {[%emt 0:16:53]} Bxf5 {[%emt 0:00:20]} 17. Bd4 {[%emt 0:03:22]} Rae8 {[%emt 0:17:24]} 18. a5 {[%emt 0:02:09]} Bxd4 {[%emt 0:00:08]} 19. cxd4 {[%emt 0:00:04]} Nc6 {[%emt 0:01:24]} 20. Rd1 {[%emt 0:29:25]} Bxe4 {[%emt 0:14:44]} 21. fxe4 {[%emt 0:00:02]} Qxe4 {[%emt 0:00:19]} 22. Bd3 {[%emt 0:00:07]} Qe3 {[%emt 0:01:27]} 23. Bxh7+ {[%emt 0:16:44]} Kh8 {[%emt 0:00:02]} 24. Rd3 {[%emt 0:00:08]} Qe1+ {[%emt 0:00:40]} 25. Rf1 {[%emt 0:00:01]} Nb4 {[%emt 0:00:38]} 26. Rh3 {[%emt 0:02:13]} Nxc2 {[%emt 0:00:16]} 27. Bxc2+ {[%emt 0:00:10]} Kg8 {[%emt 0:00:01]} 28. Bh7+ {[%emt 0:00:05]} Kh8 {[%emt 0:00:07]} 29. Bd3+ {[%emt 0:11:04]} 1-0

[Event "Romanian-ch Open 2022"]
[Site "Eforie Nord"]
[Date "2022.02.26"]
[Round "8.27"]
[White "Craciun, Gheorghe"]
[Black "Coicev, Matei-Andrei"]
[Result "0-1"]
[ECO "B13"]
[WhiteElo "1655"]
[BlackElo "1970"]
[Annotator "NA"]
[PlyCount "118"]
[EventDate "2022.02.20"]
[EventType "swiss"]
[EventCountry "ROU"]
[SourceTitle "playchess.com"]
[Source "ChessBase"]
[SourceQuality "1"]
[TimeControl "40/5400+30:900+30"]

1. d4 {[%emt 0:00:02]} Nf6 {[%emt 0:00:31]} 2. Nc3 {[%emt 0:00:05]} d5 {[%emt 0:00:38]} 3. Bf4 {[%emt 0:00:06]} c5 {[%emt 0:00:43]} 4. e3 {[%emt 0:00:14]} cxd4 {[%emt 0:00:54]} 5. exd4 {[%emt 0:00:02]} Bg4 {[%emt 0:01:32]} 6. f3 {[%emt 0:00:22]} Bd7 {[%emt 0:00:55]} 7. Bd3 {[%emt 0:03:02]} e6 {[%emt 0:00:43]} 8. a3 {[%emt 0:00:25]} Be7 {[%emt 0:01:02]} 9. Nge2 {[%emt 0:01:18]} Nc6 {[%emt 0:00:51]} 10. Nb5 {[%emt 0:00:58]} O-O {[%emt 0:01:40]} 11. O-O {[%emt 0:00:53]} a6 {[%emt 0:01:46]} 12. Nbc3 {[%emt 0:02:05]} Rc8 {[%emt 0:02:36]} 13. b4 {[%emt 0:01:26]} Nxd4 {[%emt 0:04:22]} 14. Nxd4 {[%emt 0:00:02]} Rxc3 {[%emt 0:00:10]} 15. Qd2 {[%emt 0:00:17]} Rc8 {[%emt 0:02:05]} 16. Rac1 {[%emt 0:00:54]} Bc6 {[%emt 0:14:49]} 17. Nb3 {[%emt 0:05:48]} Ba4 {[%emt 0:11:47]} 18. Rfe1 {[%emt 0:02:33]} Bxb3 {[%emt 0:01:42]} 19. cxb3 {[%emt 0:00:02]} Qb6+ {[%emt 0:00:56]} 20. Kh1 {[%emt 0:00:44]} d4 {[%emt 0:15:25]} 21. Be5 {[%emt 0:00:50]} Kh8 {[%emt 0:07:27]} 22. Rxc8 {[%emt 0:00:37]} Rxc8 {[%emt 0:00:27]} 23. Rc1 {[%emt 0:00:12]} Rc6 {[%emt 0:02:57]} 24. Rc4 {[%emt 0:02:52]} Rxc4 {[%emt 0:03:55]} 25. Bxc4 {[%emt 0:00:13]} Qc6 {[%emt 0:01:30]} 26. Bxd4 {[%emt 0:04:44]} b5 {[%emt 0:02:17]} 27. Bd3 {[%emt 0:03:38]} Kg8 {[%emt 0:10:31]} 28. Qc2 {[%emt 0:03:00]} Qxc2 {[%emt 0:01:19]} 29. Bxc2 {[%emt 0:00:02]} Nd5 {[%emt 0:00:29]} 30. Kg1 {[%emt 0:01:27]} Kf8 {[%emt 0:00:35]} 31. Kf2 {[%emt 0:00:10]} g6 {[%emt 0:00:16]} 32. Be4 {[%emt 0:02:20]} Ke8 {[%emt 0:00:53]} 33. Bxd5 {[%emt 0:02:32]} exd5 {[%emt 0:00:07]} 34. Bc5 {[%emt 0:03:51]} Bf6 {[%emt 0:00:48]} 35. Ke3 {[%emt 0:00:35]} Kd7 {[%emt 0:00:07]} 36. a4 {[%emt 0:00:51]} bxa4 {[%emt 0:00:36]} 37. bxa4 {[%emt 0:00:02]} Kc6 {[%emt 0:00:06]} 38. Bf8 {[%emt 0:03:04]} Bc3 {[%emt 0:01:32]} 39. Kd3 {[%emt 0:00:17]} Be5 {[%emt 0:00:20]} 40. g3 {[%emt 0:00:00]} h5 {[%emt 0:00:00]} 41. f4 {[%emt 0:02:54]} Bb2 {[%emt 0:01:04]} 42. Kc2 {[%emt 0:03:01]} Bd4 {[%emt 0:00:13]} 43. Be7 {[%emt 0:03:05]} Bg1 {[%emt 0:02:17]} 44. h3 {[%emt 0:00:34]} Kd7 {[%emt 0:00:41]} 45. Bh4 {[%emt 0:01:36]} Bf2 {[%emt 0:01:20]} 46. Kd3 {[%emt 0:00:24]} Ke6 {[%emt 0:01:03]} 47. b5 {[%emt 0:00:26]} axb5 {[%emt 0:00:57]} 48. axb5 {[%emt 0:00:01]} f5 {[%emt 0:01:00]} 49. Ke2 {[%emt 0:00:33]} Bb6 {[%emt 0:00:21]} 50. Kf3 {[%emt 0:00:13]} d4 {[%emt 0:00:09]} 51. g4 {[%emt 0:00:11]} Kd5 {[%emt 0:00:33]} 52. gxh5 {[%emt 0:00:38]} gxh5 {[%emt 0:00:06]} 53. Ke2 {[%emt 0:00:37]} Ke4 {[%emt 0:02:06]} 54. Bg5 {[%emt 0:00:07]} d3+ {[%emt 0:02:08]} 55. Kd1 {[%emt 0:00:10]} Kd5 {[%emt 0:00:52]} 56. Kd2 {[%emt 0:00:08]} Kc4 {[%emt 0:00:21]} 57. h4 {[%emt 0:00:36]} Ba5+ {[%emt 0:00:23]} 58. Ke3 {[%emt 0:00:02]} Kc3 {[%emt 0:00:16]} 59. Bf6+ {[%emt 0:00:43]} Kc2 {[%emt 0:00:08]} 0-1

[Event "Romanian-ch Open 2022"]
[Site "Eforie Nord"]
[Date "2022.02.26"]
[Round "8.28"]
[White "Ciocani, Iosif"]
[Black "Sarighioleanu, Sebastian-Laure"]
[Result "1-0"]
[ECO "A31"]
[WhiteElo "1876"]
[BlackElo "2045"]
[Annotator "NA"]
[PlyCount "119"]
[EventDate "2022.02.20"]
[EventType "swiss"]
[EventCountry "ROU"]
[SourceTitle "playchess.com"]
[Source "ChessBase"]
[SourceQuality "1"]
[TimeControl "40/5400+30:900+30"]

1. e4 {[%emt 0:00:01]} c5 {[%emt 0:00:07]} 2. Nf3 {[%emt 0:00:06]} e6 {[%emt 0:00:07]} 3. d4 {[%emt 0:00:04]} cxd4 {[%emt 0:00:05]} 4. Nxd4 {[%emt 0:00:06]} a6 {[%emt 0:00:16]} 5. c4 {[%emt 0:00:04]} Nf6 {[%emt 0:00:26]} 6. Nc3 {[%emt 0:00:07]} Qc7 {[%emt 0:00:28]} 7. a3 {[%emt 0:00:34]} b6 {[%emt 0:00:47]} 8. Be3 {[%emt 0:00:50]} Bb7 {[%emt 0:01:11]} 9. f3 {[%emt 0:00:19]} d6 {[%emt 0:00:58]} 10. Qd2 {[%emt 0:00:33]} Nbd7 {[%emt 0:01:06]} 11. Be2 {[%emt 0:01:17]} Be7 {[%emt 0:01:59]} 12. O-O {[%emt 0:00:48]} O-O {[%emt 0:00:13]} 13. b4 {[%emt 0:00:42]} Rac8 {[%emt 0:03:01]} 14. Rac1 {[%emt 0:01:08]} Rfe8 {[%emt 0:02:17]} 15. Rc2 {[%emt 0:10:17]} Qb8 {[%emt 0:05:27]} 16. Rb1 {[%emt 0:03:11]} Ne5 {[%emt 0:18:09]} 17. Na4 {[%emt 0:04:55]} Nfd7 {[%emt 0:00:32]} 18. Bf1 {[%emt 0:07:19]} Rc7 {[%emt 0:10:23]} 19. Qf2 {[%emt 0:15:14]} Ba8 {[%emt 0:02:22]} 20. Rbc1 {[%emt 0:08:05]} h5 {[%emt 0:10:10]} 21. Nb3 {[%emt 0:16:25]} Rc6 {[%emt 0:14:32]} 22. Be2 {[%emt 0:16:59]} Bd8 {[%emt 0:03:33]} 23. h3 {[%emt 0:04:34]} h4 {[%emt 0:07:44]} 24. Nb2 {[%emt 0:01:42]} Be7 {[%emt 0:04:30]} 25. f4 {[%emt 0:00:34]} Ng6 {[%emt 0:00:28]} 26. Bf3 {[%emt 0:00:06]} Rcc8 {[%emt 0:00:58]} 27. Na4 {[%emt 0:00:38]} Bc6 {[%emt 0:02:30]} 28. Nc3 {[%emt 0:01:17]} Bf6 {[%emt 0:03:18]} 29. b5 {[%emt 0:01:06]} Ba8 {[%emt 0:01:15]} 30. Na4 {[%emt 0:02:07]} axb5 {[%emt 0:00:32]} 31. cxb5 {[%emt 0:00:09]} Nc5 {[%emt 0:00:43]} 32. Naxc5 {[%emt 0:01:10]} dxc5 {[%emt 0:00:13]} 33. e5 {[%emt 0:00:40]} Bd8 {[%emt 0:02:45]} 34. Nd2 {[%emt 0:01:06]} Bc7 {[%emt 0:02:34]} 35. Nc4 {[%emt 0:01:04]} Rcd8 {[%emt 0:01:08]} 36. a4 {[%emt 0:01:43]} Qa7 {[%emt 0:00:59]} 37. Ra1 {[%emt 0:00:53]} Bd5 {[%emt 0:00:33]} 38. a5 {[%emt 0:00:34]} bxa5 {[%emt 0:00:30]} 39. Bxc5 {[%emt 0:00:31]} Qa8 {[%emt 0:00:37]} 40. Bxd5 {[%emt 0:00:00]} Qxd5 {[%emt 0:00:00]} 41. b6 {[%emt 0:06:14]} Bb8 {[%emt 0:00:44]} 42. Nd6 {[%emt 0:00:36]} Re7 {[%emt 0:04:47]} 43. Rd2 {[%emt 0:02:12]} Qc6 {[%emt 0:07:09]} 44. Rxa5 {[%emt 0:01:19]} Red7 {[%emt 0:00:44]} 45. Ba3 {[%emt 0:03:33]} Bxd6 {[%emt 0:01:16]} 46. Rxd6 {[%emt 0:01:29]} Qe4 {[%emt 0:02:17]} 47. Ra7 {[%emt 0:01:26]} Nf8 {[%emt 0:01:20]} 48. b7 {[%emt 0:01:48]} Rb8 {[%emt 0:00:46]} 49. Rxd7 {[%emt 0:01:45]} Nxd7 {[%emt 0:00:01]} 50. Bd6 {[%emt 0:00:30]} Qb1+ {[%emt 0:01:13]} 51. Kh2 {[%emt 0:00:11]} Re8 {[%emt 0:00:43]} 52. Ra8 {[%emt 0:00:36]} Nb8 {[%emt 0:00:31]} 53. Rxb8 {[%emt 0:00:23]} Rxb8 {[%emt 0:00:02]} 54. Bxb8 {[%emt 0:00:09]} Qxb7 {[%emt 0:00:03]} 55. Bd6 {[%emt 0:00:07]} Qe4 {[%emt 0:00:26]} 56. Qxh4 {[%emt 0:00:17]} Qf5 {[%emt 0:00:43]} 57. Qg4 {[%emt 0:00:29]} Qd3 {[%emt 0:00:24]} 58. Be7 {[%emt 0:00:39]} Qh7 {[%emt 0:00:50]} 59. Bf6 {[%emt 0:01:15]} Kf8 {[%emt 0:00:12]} 60. Qxg7+ {[%emt 0:00:29]} 1-0

[Event "Romanian-ch Open 2022"]
[Site "Eforie Nord"]
[Date "2022.02.26"]
[Round "8.29"]
[White "Tudor, Henry Edward"]
[Black "Prelipcean, Eric-Matei"]
[Result "1/2-1/2"]
[ECO "D80"]
[WhiteElo "1879"]
[BlackElo "1935"]
[Annotator "NA"]
[PlyCount "149"]
[EventDate "2022.02.20"]
[EventType "swiss"]
[EventCountry "ROU"]
[SourceTitle "playchess.com"]
[Source "ChessBase"]
[SourceQuality "1"]
[TimeControl "40/5400+30:900+30"]

1. d4 {[%emt 0:00:03]} Nf6 {[%emt 0:00:06]} 2. c4 {[%emt 0:00:09]} g6 {[%emt 0:00:07]} 3. Nc3 {[%emt 0:00:07]} d5 {[%emt 0:00:05]} 4. Bg5 {[%emt 0:00:39]} Ne4 {[%emt 0:00:15]} 5. Nxe4 {[%emt 0:00:45]} dxe4 {[%emt 0:00:13]} 6. Qd2 {[%emt 0:00:07]} Bg7 {[%emt 0:01:13]} 7. O-O-O {[%emt 0:03:58]} h6 {[%emt 0:03:05]} 8. Bf4 {[%emt 0:01:33]} Nc6 {[%emt 0:00:43]} 9. e3 {[%emt 0:18:28]} O-O {[%emt 0:03:19]} 10. Ne2 {[%emt 0:03:00]} f5 {[%emt 0:01:17]} 11. f3 {[%emt 0:09:06]} e5 {[%emt 0:07:36]} 12. Bg3 {[%emt 0:01:08]} f4 {[%emt 0:12:45]} 13. exf4 {[%emt 0:05:45]} exf3 {[%emt 0:02:02]} 14. gxf3 {[%emt 0:02:29]} exd4 {[%emt 0:00:07]} 15. Bf2 {[%emt 0:01:00]} Qf6 {[%emt 0:00:16]} 16. Rg1 {[%emt 0:05:13]} Kh7 {[%emt 0:10:16]} 17. h4 {[%emt 0:15:47]} h5 {[%emt 0:15:01]} 18. Rg5 {[%emt 0:20:38]} Bf5 {[%emt 0:08:01]} 19. Ng3 {[%emt 0:01:28]} Bh6 {[%emt 0:00:27]} 20. Rxf5 {[%emt 0:02:10]} gxf5 {[%emt 0:00:36]} 21. Nxh5 {[%emt 0:00:02]} Qg6 {[%emt 0:00:58]} 22. Ng3 {[%emt 0:00:40]} Qd6 {[%emt 0:00:40]} 23. Ne2 {[%emt 0:01:36]} Rad8 {[%emt 0:01:45]} 24. Kb1 {[%emt 0:02:56]} d3 {[%emt 0:02:12]} 25. Nc3 {[%emt 0:00:33]} Qxf4 {[%emt 0:06:01]} 26. Qxf4 {[%emt 0:00:22]} Bxf4 {[%emt 0:00:02]} 27. Bxd3 {[%emt 0:00:03]} b6 {[%emt 0:00:41]} 28. a3 {[%emt 0:01:34]} Be5 {[%emt 0:03:10]} 29. Nd5 {[%emt 0:00:39]} Bd6 {[%emt 0:00:42]} 30. Be3 {[%emt 0:02:12]} Ne5 {[%emt 0:00:35]} 31. Bg5 {[%emt 0:00:23]} Rc8 {[%emt 0:00:55]} 32. Bc2 {[%emt 0:01:01]} Nxf3 {[%emt 0:01:34]} 33. Bf6 {[%emt 0:00:33]} Kg6 {[%emt 0:00:49]} 34. h5+ {[%emt 0:00:44]} Kxh5 {[%emt 0:02:24]} 35. Bxf5 {[%emt 0:00:03]} Rce8 {[%emt 0:00:21]} 36. Rd3 {[%emt 0:01:05]} Ng5 {[%emt 0:01:05]} 37. Rd1 {[%emt 0:00:27]} Re2 {[%emt 0:01:59]} 38. Rg1 {[%emt 0:00:29]} Rf2 {[%emt 0:00:54]} 39. Rxg5+ {[%emt 0:00:15]} Kh6 {[%emt 0:00:06]} 40. Bg4 {[%emt 0:00:00]} R2xf6 {[%emt 0:00:00]} 41. Rh5+ {[%emt 0:00:51]} Kg6 {[%emt 0:03:05]} 42. Nxf6 {[%emt 0:00:17]} Rxf6 {[%emt 0:00:05]} 43. Rd5 {[%emt 0:02:44]} Rf4 {[%emt 0:00:43]} 44. Be2 {[%emt 0:01:16]} Rf2 {[%emt 0:00:01]} 45. Bd3+ {[%emt 0:01:22]} Kf6 {[%emt 0:00:01]} 46. Rh5 {[%emt 0:00:34]} Be5 {[%emt 0:00:23]} 47. Bc2 {[%emt 0:00:26]} Ke6 {[%emt 0:00:38]} 48. Rh6+ {[%emt 0:01:30]} Bf6 {[%emt 0:00:05]} 49. Rh5 {[%emt 0:00:23]} Kd6 {[%emt 0:00:22]} 50. Rd5+ {[%emt 0:00:10]} Ke6 {[%emt 0:00:25]} 51. Rh5 {[%emt 0:00:01]} c6 {[%emt 0:02:37]} 52. c5 {[%emt 0:01:34]} b5 {[%emt 0:00:25]} 53. Bb3+ {[%emt 0:01:04]} Kd7 {[%emt 0:01:01]} 54. Rh7+ {[%emt 0:01:29]} Kc8 {[%emt 0:00:52]} 55. Bc2 {[%emt 0:00:47]} Kb8 {[%emt 0:01:02]} 56. Rf7 {[%emt 0:01:29]} a5 {[%emt 0:01:16]} 57. Rf8+ {[%emt 0:00:33]} Kc7 {[%emt 0:00:06]} 58. Rf7+ {[%emt 0:00:02]} Kd8 {[%emt 0:00:37]} 59. Rf8+ {[%emt 0:00:12]} Kd7 {[%emt 0:01:08]} 60. Ra8 {[%emt 0:01:23]} a4 {[%emt 0:00:08]} 61. Ra6 {[%emt 0:00:22]} Rf1+ {[%emt 0:01:49]} 62. Ka2 {[%emt 0:00:01]} Rc1 {[%emt 0:00:12]} 63. Bf5+ {[%emt 0:00:14]} Kc7 {[%emt 0:00:08]} 64. Ra7+ {[%emt 0:00:59]} Kb8 {[%emt 0:01:06]} 65. Rf7 {[%emt 0:00:50]} Be5 {[%emt 0:00:21]} 66. Rf8+ {[%emt 0:00:30]} Kc7 {[%emt 0:00:06]} 67. Rf7+ {[%emt 0:01:00]} Kd8 {[%emt 0:00:16]} 68. Rd7+ {[%emt 0:01:22]} Ke8 {[%emt 0:00:07]} 69. Rd2 {[%emt 0:00:10]} Rxc5 {[%emt 0:00:06]} 70. Rc2 {[%emt 0:00:01]} Rxc2 {[%emt 0:05:52]} 71. Bxc2 {[%emt 0:00:01]} Kd7 {[%emt 0:00:01]} 72. b3 {[%emt 0:00:15]} axb3+ {[%emt 0:01:10]} 73. Kxb3 {[%emt 0:00:02]} c5 {[%emt 0:03:08]} 74. a4 {[%emt 0:00:06]} bxa4+ {[%emt 0:00:03]} 75. Kxa4 {[%emt 0:00:02]} 1/2-1/2

[Event "Romanian-ch Open 2022"]
[Site "Eforie Nord"]
[Date "2022.02.26"]
[Round "8.30"]
[White "Bobocea, Laurentiu-Vlad"]
[Black "Chis, Bogdan-Vasile"]
[Result "1/2-1/2"]
[ECO "D08"]
[WhiteElo "1987"]
[BlackElo "1685"]
[Annotator "ChessBase"]
[PlyCount "33"]
[EventDate "2022.02.20"]
[EventType "swiss"]
[EventCountry "ROU"]
[SourceTitle "playchess.com"]
[Source "ChessBase"]
[SourceQuality "1"]
[TimeControl "40/5400+30:900+30"]

1. d4 {[%emt 0:03:38]} d5 {[%emt 0:00:02]} 2. c4 {[%emt 0:00:04]} e5 {[%emt 0:00:04]} 3. dxe5 {[%emt 0:00:05]} d4 {[%emt 0:00:02]} 4. Nf3 {[%emt 0:00:06]} Nc6 {[%emt 0:00:07]} 5. a3 {[%emt 0:00:02]} Nge7 {[%emt 0:00:09]} 6. b4 {[%emt 0:00:33]} Ng6 {[%emt 0:00:47]} 7. Bb2 {[%emt 0:00:30]} a5 {[%emt 0:04:35]} 8. b5 {[%emt 0:02:58]} Ncxe5 {[%emt 0:00:15]} 9. Nxe5 {[%emt 0:00:08]} Nxe5 {[%emt 0:00:20]} 10. Qxd4 {[%emt 0:00:20]} Qxd4 {[%emt 0:02:11]} 11. Bxd4 {[%emt 0:00:02]} Nxc4 {[%emt 0:01:14]} 12. e4 {[%emt 0:00:41]} Be6 {[%emt 0:02:05]} 13. Be2 {[%emt 0:04:59]} O-O-O {[%emt 0:17:15]} 14. Bc3 {[%emt 0:08:44]} b6 {[%emt 0:00:15]} 15. O-O {[%emt 0:07:44]} f6 {[%emt 0:00:27]} 16. Rc1 {[%emt 0:06:07]} Ne5 {[%emt 0:04:14]} 17. a4 {[%emt 1:02:19]} 1/2-1/2

[Event "Romanian-ch Open 2022"]
[Site "Eforie Nord"]
[Date "2022.02.27"]
[Round "9.21"]
[White "Daianu, Cristian-Clement"]
[Black "Mintau, Andrei-Catalin"]
[Result "1/2-1/2"]
[ECO "B01"]
[WhiteElo "2171"]
[BlackElo "2029"]
[Annotator "NA"]
[PlyCount "70"]
[EventDate "2022.02.20"]
[EventType "swiss"]
[EventCountry "ROU"]
[SourceTitle "playchess.com"]
[Source "ChessBase"]
[SourceQuality "1"]
[TimeControl "40/5400+30:900+30"]

1. e4 {[%emt 0:08:29]} d5 {[%emt 0:00:19]} 2. exd5 {[%emt 0:00:22]} Qxd5 {[%emt 0:00:05]} 3. Nc3 {[%emt 0:00:06]} Qa5 {[%emt 0:00:06]} 4. d4 {[%emt 0:00:44]} Nf6 {[%emt 0:00:10]} 5. Nf3 {[%emt 0:00:25]} Bf5 {[%emt 0:00:24]} 6. Bc4 {[%emt 0:01:30]} e6 {[%emt 0:01:36]} 7. Bd2 {[%emt 0:00:18]} Bb4 {[%emt 0:05:27]} 8. Qe2 {[%emt 0:09:40]} c6 {[%emt 0:18:25]} 9. Ne5 {[%emt 0:08:53]} Nd5 {[%emt 0:13:27]} 10. Bxd5 {[%emt 0:17:17]} cxd5 {[%emt 0:00:11]} 11. Qb5+ {[%emt 0:00:13]} Qxb5 {[%emt 0:03:36]} 12. Nxb5 {[%emt 0:03:23]} Bxd2+ {[%emt 0:00:10]} 13. Kxd2 {[%emt 0:00:05]} f6 {[%emt 0:00:07]} 14. g4 {[%emt 0:04:40]} Be4 {[%emt 0:00:40]} 15. f3 {[%emt 0:00:07]} fxe5 {[%emt 0:06:01]} 16. fxe4 {[%emt 0:07:19]} Kd7 {[%emt 0:00:06]} 17. exd5 {[%emt 0:02:57]} exd5 {[%emt 0:02:14]} 18. dxe5 {[%emt 0:02:21]} Nc6 {[%emt 0:00:06]} 19. Rae1 {[%emt 0:00:48]} Rae8 {[%emt 0:00:14]} 20. Nd6 {[%emt 0:09:53]} Rxe5 {[%emt 0:00:07]} 21. Nxb7 {[%emt 0:00:32]} Rb8 {[%emt 0:00:14]} 22. Nc5+ {[%emt 0:00:19]} Kd6 {[%emt 0:00:11]} 23. Nd3 {[%emt 0:02:30]} Re4 {[%emt 0:00:28]} 24. Rxe4 {[%emt 0:07:00]} dxe4 {[%emt 0:00:02]} 25. Nf2 {[%emt 0:00:01]} Rxb2 {[%emt 0:08:00]} 26. Nxe4+ {[%emt 0:00:09]} Kd5 {[%emt 0:00:24]} 27. Kc1 {[%emt 0:04:10]} Rb4 {[%emt 0:00:24]} 28. Nc3+ {[%emt 0:00:35]} Kd4 {[%emt 0:01:44]} 29. a3 {[%emt 0:01:01]} Rc4 {[%emt 0:00:33]} 30. Rd1+ {[%emt 0:02:35]} Kc5 {[%emt 0:03:48]} 31. Rd5+ {[%emt 0:05:03]} Kb6 {[%emt 0:01:18]} 32. Kb2 {[%emt 0:01:04]} Rxg4 {[%emt 0:03:17]} 33. Rh5 {[%emt 0:00:12]} h6 {[%emt 0:00:15]} 34. Nd5+ {[%emt 0:00:23]} Kb7 {[%emt 0:00:06]} 35. Rf5 {[%emt 0:00:52]} Nd4 {[%emt 0:33:45]} 1/2-1/2

[Event "Romanian-ch Open 2022"]
[Site "Eforie Nord"]
[Date "2022.02.27"]
[Round "9.24"]
[White "Antal, Hunor-Zoltan"]
[Black "Ciocani, Iosif"]
[Result "1-0"]
[ECO "A27"]
[WhiteElo "2172"]
[BlackElo "1876"]
[Annotator "NA"]
[PlyCount "63"]
[EventDate "2022.02.20"]
[EventType "swiss"]
[EventCountry "ROU"]
[SourceTitle "playchess.com"]
[Source "ChessBase"]
[SourceQuality "1"]
[TimeControl "40/5400+30:900+30"]

1. c4 {[%emt 0:00:03]} e5 {[%emt 0:00:19]} 2. g3 {[%emt 0:00:11]} g6 {[%emt 0:00:06]} 3. Bg2 {[%emt 0:00:06]} Bg7 {[%emt 0:00:08]} 4. Nc3 {[%emt 0:00:05]} Ne7 {[%emt 0:00:14]} 5. Nf3 {[%emt 0:00:19]} O-O {[%emt 0:00:24]} 6. d4 {[%emt 0:02:09]} exd4 {[%emt 0:02:38]} 7. Nxd4 {[%emt 0:00:25]} Nbc6 {[%emt 0:00:21]} 8. Nc2 {[%emt 0:06:51]} d6 {[%emt 0:03:33]} 9. O-O {[%emt 0:02:59]} Be6 {[%emt 0:01:03]} 10. Nd5 {[%emt 0:02:01]} Ne5 {[%emt 0:03:13]} 11. Nd4 {[%emt 0:10:08]} N7c6 {[%emt 0:40:03]} 12. Nxe6 {[%emt 0:09:16]} fxe6 {[%emt 0:00:10]} 13. Nf4 {[%emt 0:00:51]} Re8 {[%emt 0:01:51]} 14. Bd2 {[%emt 0:07:02]} Nd7 {[%emt 0:04:02]} 15. h4 {[%emt 0:04:45]} Nc5 {[%emt 0:03:49]} 16. h5 {[%emt 0:03:54]} e5 {[%emt 0:09:24]} 17. Nd5 {[%emt 0:14:00]} a5 {[%emt 0:09:14]} 18. hxg6 {[%emt 0:02:50]} hxg6 {[%emt 0:00:11]} 19. Bh3 {[%emt 0:10:30]} Rf8 {[%emt 0:02:11]} 20. Qc2 {[%emt 0:03:30]} e4 {[%emt 0:01:50]} 21. Be3 {[%emt 0:00:49]} Nd4 {[%emt 0:02:30]} 22. Qd2 {[%emt 0:00:36]} Nf5 {[%emt 0:01:09]} 23. Bg5 {[%emt 0:04:23]} Qd7 {[%emt 0:01:41]} 24. Ne7+ {[%emt 0:01:44]} Kh7 {[%emt 0:00:43]} 25. Kg2 {[%emt 0:02:15]} Bf6 {[%emt 0:08:55]} 26. Rh1 {[%emt 0:00:30]} Kg7 {[%emt 0:00:27]} 27. Bxf5 {[%emt 0:00:32]} gxf5 {[%emt 0:00:06]} 28. Bxf6+ {[%emt 0:00:42]} Rxf6 {[%emt 0:00:46]} 29. Qg5+ {[%emt 0:00:16]} Kf7 {[%emt 0:00:04]} 30. Nd5 {[%emt 0:00:36]} Qd8 {[%emt 0:00:34]} 31. Rh7+ {[%emt 0:00:33]} Ke6 {[%emt 0:00:05]} 32. Nxf6 {[%emt 0:01:05]} 1-0